fUST/lending_fUST_20250219
["ID","MTS","AMOUNT","RATE_DAILY","PERIOD"]
[353613511,1739958555568,-500.0,0.00010958,2]
[353613512,1739958555590,-500.0,0.00010958,2]
[353613513,1739958555612,-500.0,0.00010958,2]
[353613514,1739958555635,-618.19160055,0.00010958,2]
[353613515,1739958555656,-500.0,0.00010958,2]
[353613516,1739958555679,-202.67284157,0.00010958,2]
[353613517,1739958555701,-500.0,0.00010958,2]
[353613518,1739958555724,-500.0,0.00010958,2]
[353613519,1739958555746,-226.74590759,0.00010958,2]
[353613520,1739958555769,-500.0,0.00010958,2]
[353613521,1739958555791,-500.0,0.00010958,2]
[353613522,1739958555814,-500.0,0.00010958,2]
[353613523,1739958555836,-590.91017784,0.00010958,2]
[353613524,1739958555859,-218.03923946,0.00010958,2]
[353613525,1739958555883,-500.0,0.00010958,2]
[353613526,1739958555905,-500.0,0.00010958,2]
[353613527,1739958555927,-500.0,0.00010958,2]
[353613528,1739958555951,-500.0,0.00010958,2]
[353613529,1739958555973,-576.83473718,0.00010958,2]
[353613530,1739958555995,-500.0,0.00010958,2]
[353613531,1739958556019,-600.0,0.00010958,2]
[353613532,1739958556041,-500.0,0.00010958,2]
[353613533,1739958556063,-645.0,0.00010958,2]
[353613534,1739958556084,-588.68497984,0.00010958,2]
[353613535,1739958556107,-500.0,0.00010958,2]
[353613536,1739958556129,-500.0,0.00010958,2]
[353613537,1739958556151,-500.0,0.00010958,2]
[353613538,1739958556173,-372.53538236,0.00010958,2]
[353613539,1739958556196,-500.0,0.00010958,2]
[353613540,1739958556218,-500.0,0.00010958,2]
[353613541,1739958556242,-500.0,0.00010958,2]
[353613542,1739958556263,-500.0,0.00010958,2]
[353613543,1739958556286,-500.0,0.00010958,2]
[353613544,1739958556308,-500.0,0.00010958,2]
[353613545,1739958556330,-500.0,0.00010958,2]
[353613546,1739958556355,-500.0,0.00010958,2]
[353613547,1739958556377,-500.0,0.00010958,2]
[353613548,1739958556399,-500.0,0.00010958,2]
[353613549,1739958556422,-500.0,0.00010958,2]
[353613550,1739958556445,-500.0,0.00010958,2]
[353613551,1739958556467,-500.0,0.00010958,2]
[353613552,1739958556495,-500.0,0.00010958,2]
[353613553,1739958556515,-166.47793661,0.00010958,2]
[353613554,1739958556537,-500.0,0.00010958,2]
[353613555,1739958556559,-500.0,0.00010958,2]
[353613556,1739958556581,-500.0,0.00010958,2]
[353613557,1739958556602,-210.08193932,0.00010958,2]
[353613558,1739958556623,-168.25078699,0.00010958,2]
[353613559,1739958556646,-500.0,0.00010958,2]
[353613560,1739958556669,-528.63511821,0.00010958,2]
[353613561,1739958556691,-500.0,0.00010958,2]
[353613562,1739958556712,-9418.89,0.00010959,2]
[353613563,1739958556734,-7849.07,0.00010959,2]
[353613564,1739958556754,-6959.16,0.00010959,2]
[353613565,1739958556775,-5799.3,0.00010959,2]
[353613566,1739958556796,-4832.75,0.00010959,2]
[353613567,1739958556817,-4027.29,0.00010959,2]
[353613568,1739958556838,-3356.08,0.00010959,2]
[353613569,1739958556859,-2120.63952333,0.00010959,2]
[353613570,1739958563179,-4897.40489672,0.0001074,2]
[353613571,1739958563200,-676.09047667,0.00010959,2]
[353613572,1739958563220,-2330.61,0.00010959,2]
[353613573,1739958563242,-1942.17,0.00010959,2]
[353613574,1739958563263,-420.0,0.00012041,2]
[353613575,1739958563284,-587.0,0.00013232,2]
[353613576,1739958563305,-500.0,0.00013698,2]
[353613577,1739958563325,-502.23393243,0.00013698,2]
[353613578,1739958563348,-500.0,0.00013698,2]
[353613579,1739958563368,-500.0,0.00013698,2]
[353613580,1739958563390,-566.13,0.00013698,2]
[353613581,1739958563413,-500.0,0.00013698,2]
[353613582,1739958563434,-500.0,0.00013698,2]
[353613583,1739958563453,-587.40762583,0.00013698,2]
[353613584,1739958563475,-500.0,0.00013698,2]
[353613585,1739958563496,-500.0,0.00013698,2]
[353613586,1739958563516,-500.83208442,0.00013698,2]
[353613587,1739958563537,-500.0,0.00013698,2]
[353613588,1739958563560,-500.0,0.00013698,2]
[353613589,1739958563582,-504.59330764,0.00013698,2]
[353613590,1739958563603,-503.30253068,0.00013698,2]
[353613591,1739958563626,-500.0,0.00013698,2]
[353613592,1739958563648,-500.0,0.00013698,2]
[353613593,1739958563670,-500.0,0.00013698,2]
[353613594,1739958563693,-500.0,0.00013698,2]
[353613595,1739958563717,-256.148249,0.00013699,2]
[353613596,1739958563742,-500.0,0.00013699,2]
[353613597,1739958563764,-196.16011,0.00013699,2]
[353613598,1739958563786,-500.0,0.0001378,2]
[353613599,1739958563807,-500.0,0.0001378,2]
[353613600,1739958563830,-500.0,0.0001378,2]
[353613601,1739958563851,-503.37252406,0.0001378,2]
[353613602,1739958563875,-500.0,0.0001378,2]
[353613603,1739958563898,-500.0,0.0001378,2]
[353613604,1739958563920,-225.72,0.0001378,2]
[353613605,1739958563943,-500.0,0.0001378,2]
[353613606,1739958563966,-500.0,0.00013863,2]
[353613607,1739958563988,-500.0,0.00013863,2]
[353613608,1739958564011,-500.0,0.00013863,2]
[353613609,1739958564032,-500.0,0.00013863,2]
[353613610,1739958564055,-500.0,0.00013863,2]
[353613611,1739958564076,-500.0,0.00013863,2]
[353613612,1739958564099,-500.0,0.00013945,2]
[353613613,1739958564119,-500.0,0.00013945,2]
[353613614,1739958564141,-500.0,0.00013945,2]
[353613615,1739958564163,-500.0,0.00013945,2]
[353613616,1739958564185,-500.0,0.00013945,2]
[353613617,1739958564308,-500.0,0.00013945,2]
[353613618,1739958564332,-649.20642607,0.00013988,2]
[353613619,1739958564358,-649.20642607,0.0001399,2]
[353613620,1739958564380,-344.27208034,0.0001399,2]
[353613621,1739958564402,-688.54416068,0.00013992,2]
[353613622,1739958564424,-344.27208034,0.00013993,2]
[353613623,1739958564447,-688.54416068,0.00013994,2]
[353613624,1739958564469,-649.20642607,0.00013996,2]
[353613625,1739958564494,-344.27208034,0.00013997,2]
[353613626,1739958564515,-688.54416068,0.00013997,2]
[353613627,1739958564539,-500.0,0.00014027,2]
[353613628,1739958564560,-500.0,0.00014027,2]
[353613629,1739958564584,-500.0,0.00014027,2]
[353613630,1739958564607,-500.0,0.00014027,2]
[353613631,1739958564631,-500.0,0.00014027,2]
[353613632,1739958564654,-500.0,0.00014109,2]
[353613633,1739958564676,-500.0,0.00014109,2]
[353613634,1739958564699,-500.0,0.00014109,2]
[353613635,1739958564721,-500.0,0.00014109,2]
[353613636,1739958564745,-500.0,0.00014109,2]
[353613637,1739958564767,-500.0,0.00014164,2]
[353613638,1739958564789,-500.0,0.00014191,2]
[353613639,1739958564810,-500.0,0.00014191,2]
[353613640,1739958564833,-500.0,0.00014191,2]
[353613641,1739958564857,-432.05695954,0.00014191,2]
[353613642,1739958564881,-500.0,0.00014273,2]
[353613643,1739958564902,-500.0,0.00014273,2]
[353613644,1739958564925,-500.0,0.00014273,2]
[353613645,1739958564947,-500.0,0.00014356,2]
[353613646,1739958564969,-535.40537909,0.00014356,2]
[353613647,1739958564990,-500.0,0.00014438,2]
[353613648,1739958565012,-308.5887921,0.00014449,2]
[353613649,1739958565033,-500.0,0.0001452,2]
[353613650,1739958565056,-823.0,0.00014541,2]
[353613651,1739958565078,-500.0,0.00014602,2]
[353613652,1739958565104,-542.47239575,0.00014617,2]
[353613653,1739958565126,-500.0,0.00014618,2]
[353613654,1739958565148,-500.0,0.00014618,2]
[353613655,1739958565170,-500.0,0.00014618,2]
[353613656,1739958565192,-500.0,0.00014618,2]
[353613657,1739958565214,-272.93546134,0.00014618,2]
[353613662,1739958632259,-272.72,0.00010959,2]
[353613887,1739958639701,-1345.76,0.00010959,2]
[353613889,1739958639712,-1348.73,0.00010959,2]
[353613891,1739958639721,-1123.94,0.00010959,2]
[353613893,1739958639732,-936.62,0.00010959,2]
[353613895,1739958639742,-780.52,0.00010959,2]
[353613897,1739958639752,-308.44687086,0.00013561,2]
[353613900,1739958639762,-5843.9188872,0.00013577,2]
[353613902,1739958639772,-300.0,0.00013697,2]
[353613904,1739958639781,-500.0,0.00013698,2]
[353613906,1739958639792,-500.0,0.00013698,2]
[353613909,1739958639802,-500.93178824,0.00013698,2]
[353613911,1739958639811,-501.84800233,0.00013698,2]
[353613913,1739958639821,-500.0,0.00013698,2]
[353613915,1739958639830,-500.0,0.00013698,2]
[353613917,1739958639840,-500.96825959,0.00013698,2]
[353613920,1739958639849,-521.37936738,0.00013698,2]
[353613922,1739958639859,-506.06009748,0.00013698,2]
[353613924,1739958639870,-502.69411031,0.00013698,2]
[353613926,1739958639879,-500.89192855,0.00013698,2]
[353613928,1739958639889,-500.0,0.00013698,2]
[353613930,1739958639899,-500.0,0.00013698,2]
[353613932,1739958639908,-500.0,0.00013698,2]
[353613934,1739958639918,-500.0,0.00013698,2]
[353613936,1739958639927,-398.40687454,0.00013698,2]
[353613938,1739958639937,-503.39386372,0.00013698,2]
[353613940,1739958639947,-405.9,0.0001378,2]
[353613942,1739958639957,-501.47185371,0.0001378,2]
[353613944,1739958639967,-504.46148131,0.0001378,2]
[353613946,1739958639976,-500.0,0.00014471,2]
[353613948,1739958639986,-500.0,0.00014471,2]
[353613950,1739958639995,-500.0,0.00014471,2]
[353613952,1739958640005,-425.70088442,0.00014471,2]
[353613954,1739958640015,-219.25261554,0.00014471,2]
[353613956,1739958640025,-9144.73134598,0.00014472,2]
[353613958,1739958640034,-305.8975489,0.00014618,2]
[353613960,1739958640044,-501.22467652,0.00014618,2]
[353613962,1739958640053,-187.86365616,0.00014618,2]
[353613964,1739958640063,-229.6017863,0.00014618,2]
[353613966,1739958640079,-502.49519932,0.00014618,2]
[353613968,1739958640092,-500.84667658,0.00014618,2]
[353613970,1739958640102,-453.6850382,0.00014618,2]
[353613972,1739958640112,-500.0,0.00014618,2]
[353613974,1739958640121,-526.32757355,0.00014618,2]
[353613976,1739958640131,-500.96565981,0.00014618,2]
[353613978,1739958640141,-501.35412303,0.00014618,2]
[353613980,1739958640151,-501.50611332,0.00014618,2]
[353613982,1739958640160,-500.14701056,0.00014618,2]
[353613984,1739958640170,-500.0,0.00014618,2]
[353613986,1739958640180,-500.0,0.00014618,2]
[353613988,1739958640190,-500.0,0.00014618,2]
[353613991,1739958640202,-500.0,0.00014618,2]
[353613993,1739958640211,-500.0,0.00014618,2]
[353613995,1739958640221,-500.46510342,0.00014618,2]
[353613997,1739958640231,-500.90421988,0.00014618,2]
[353613999,1739958640240,-500.0,0.00014618,2]
[353614001,1739958640251,-500.0,0.00014618,2]
[353614003,1739958640261,-500.0,0.00014618,2]
[353614005,1739958640272,-500.0,0.00014618,2]
[353614007,1739958640282,-500.47851655,0.00014618,2]
[353614009,1739958640291,-504.78889471,0.00014618,2]
[353614011,1739958640302,-642.12160103,0.00014618,2]
[353614013,1739958640312,-500.0,0.00014618,2]
[353614015,1739958640322,-504.01159956,0.00014618,2]
[353614017,1739958640332,-500.86090512,0.00014618,2]
[353614019,1739958640342,-331.23902136,0.00014618,2]
[353614021,1739958640352,-500.4661367,0.00014618,2]
[353614023,1739958640363,-502.15224562,0.00014618,2]
[353614026,1739958640377,-502.26184712,0.00014618,2]
[353614028,1739958640387,-503.4800526,0.00014618,2]
[353614029,1739958640397,-205.82713939,0.00014618,2]
[353614032,1739958640407,-500.0,0.00014618,2]
[353614034,1739958640417,-500.0,0.00014684,2]
[353614035,1739958640427,-188.12085178,0.00014749,2]
[353614038,1739958640439,-500.0,0.00014767,2]
[353614040,1739958640450,-1781.3342899,0.00014834,2]
[353614042,1739958640461,-500.0,0.00014849,2]
[353614044,1739958640471,-500.0,0.00014931,2]
[353614046,1739958640480,-420.0,0.0001501,2]
[353614048,1739958640490,-501.40273484,0.00015013,2]
[353614050,1739958640500,-152.0,0.00015092,2]
[353614052,1739958640509,-192.0,0.00015431,2]
[353614054,1739958640518,-500.0,0.00015439,2]
[353614056,1739958640528,-21154.467976,0.00015544,2]
[353614058,1739958640539,-672.26676577,0.00015544,2]
[353614060,1739958640549,-196.07546851,0.00015545,2]
[353614062,1739958640558,-602.6266007,0.00015553,2]
[353614064,1739958640568,-500.0,0.00015553,2]
[353614066,1739958640577,-500.0,0.00015553,2]
[353614068,1739958640587,-500.0,0.00015553,2]
[353614070,1739958640596,-1003.14,0.00015553,2]
[353614072,1739958640605,-500.0,0.00015553,2]
[353614073,1739958640616,-507.08258504,0.00015553,2]
[353614074,1739958640625,-500.0,0.00015553,2]
[353614075,1739958640635,-538.04,0.00015553,2]
[353614076,1739958640644,-501.50148614,0.00015553,2]
[353614077,1739958640653,-500.0,0.00015553,2]
[353614078,1739958640662,-7438.69753278,0.00015554,2]
[353614079,1739958640671,-500.0,0.00015635,2]
[353614080,1739958640680,-1003.14,0.00015635,2]
[353614081,1739958640689,-500.0,0.00015635,2]
[353614082,1739958640698,-500.0,0.00015718,2]
[353614083,1739958640707,-1003.14,0.00015718,2]
[353614084,1739958640716,-205.33839763,0.00015718,2]
[353614085,1739958640726,-500.0,0.000158,2]
[353614086,1739958640735,-1003.14,0.000158,2]
[353614087,1739958640745,-1003.14,0.00015882,2]
[353614088,1739958640754,-1003.14,0.00015964,2]
[353614089,1739958640763,-1003.14,0.00016046,2]
[353614090,1739958640773,-1003.14,0.00016129,2]
[353614091,1739958640782,-444.01691701,0.000162,2]
[353614092,1739958640790,-444.016917,0.000162,2]
[353614093,1739958640800,-444.016917,0.000162,2]
[353614094,1739958640809,-444.016917,0.000162,2]
[353614095,1739958640818,-1003.14,0.00016211,2]
[353614096,1739958640827,-1003.14,0.00016293,2]
[353614097,1739958640836,-500.0,0.00016329,2]
[353614099,1739958640846,-1003.14,0.00016375,2]
[353614101,1739958640855,-500.0,0.00016429,2]
[353614103,1739958640865,-587.0,0.0001645,2]
[353614105,1739958640874,-1003.14,0.00016457,2]
[353614107,1739958640884,-500.0,0.00016529,2]
[353614109,1739958640893,-1003.14,0.00016539,2]
[353614111,1739958640903,-1003.14,0.00016622,2]
[353614113,1739958640912,-500.0,0.00016629,2]
[353614115,1739958640922,-1003.14,0.00016704,2]
[353614117,1739958640932,-500.0,0.00016729,2]
[353614118,1739958640942,-1003.14,0.00016786,2]
[353614120,1739958640952,-500.0,0.00016829,2]
[353614122,1739958640962,-1003.14,0.00016868,2]
[353614124,1739958640972,-500.0,0.00016904,2]
[353614126,1739958640982,-500.0,0.00016929,2]
[353614129,1739958640991,-1003.14,0.0001695,2]
[353614130,1739958641000,-500.0,0.00017029,2]
[353614133,1739958641010,-1003.14,0.00017033,2]
[353614135,1739958641019,-355.1269712,0.00017041,2]
[353614136,1739958641028,-1003.14,0.00017115,2]
[353614138,1739958641038,-196.16011,0.00017123,2]
[353614140,1739958641048,-500.0,0.00017129,2]
[353614143,1739958641058,-153.0,0.00017178,2]
[353614144,1739958641067,-155.6053538,0.00017178,2]
[353614146,1739958641077,-1003.14,0.00017197,2]
[353614148,1739958641086,-500.0,0.00017229,2]
[353614150,1739958641096,-1003.14,0.00017279,2]
[353614152,1739958641106,-500.0,0.00017329,2]
[353614155,1739958641116,-1003.14,0.00017361,2]
[353614157,1739958641126,-21154.467976,0.00017376,2]
[353614158,1739958641135,-672.26676577,0.00017376,2]
[353614160,1739958641145,-500.0,0.00017385,2]
[353614163,1739958641154,-500.0,0.00017385,2]
[353614164,1739958641163,-500.0,0.00017385,2]
[353614166,1739958641172,-150.0,0.00017386,2]
[353614169,1739958641183,-1971.0,0.00017386,2]
[353614171,1739958641193,-538.0,0.00017386,2]
[353614173,1739958641202,-2290.0,0.00017386,2]
[353614175,1739958641212,-150.0,0.00017386,2]
[353614176,1739958641221,-396.0,0.00017386,2]
[353614179,1739958641231,-500.0,0.00017429,2]
[353614180,1739958641240,-1003.3,0.00017444,2]
[353614182,1739958641250,-153.380625,0.00017452,2]
[353614184,1739958641260,-500.0,0.00017467,2]
[353614187,1739958641269,-500.0,0.00017467,2]
[353614189,1739958641279,-500.0,0.00017529,2]
[353614191,1739958641288,-500.0,0.0001755,2]
[353614193,1739958641298,-500.0,0.0001755,2]
[353614195,1739958641307,-155.0392502,0.00017584,2]
[353614197,1739958641316,-2500.0,0.00017589,2]
[353614199,1739958641326,-2500.0,0.00017597,2]
[353614201,1739958641335,-2500.0,0.00017606,2]
[353614203,1739958641345,-2500.0,0.00017615,2]
[353614205,1739958641355,-500.0,0.00017629,2]
[353614207,1739958641365,-500.0,0.00017632,2]
[353614209,1739958641378,-564.03466159,0.00017632,2]
[353614211,1739958641387,-1033.4595575,0.0001764,2]
[353614213,1739958641396,-21154.467976,0.00017666,2]
[353614214,1739958641405,-672.26676577,0.00017666,2]
[353614217,1739958641416,-484.0,0.00017671,2]
[353614218,1739958641426,-484.0,0.00017671,2]
[353614220,1739958641435,-484.0,0.00017671,2]
[353614222,1739958641446,-484.0,0.00017671,2]
[353614224,1739958641456,-484.0,0.00017671,2]
[353614226,1739958641465,-484.0,0.00017671,2]
[353614228,1739958641475,-484.0,0.00017671,2]
[353614230,1739958641484,-484.0,0.00017671,2]
[353614232,1739958641494,-484.0,0.00017671,2]
[353614234,1739958641503,-484.0,0.00017671,2]
[353614236,1739958641512,-484.0,0.00017671,2]
[353614238,1739958641522,-484.0,0.00017671,2]
[353614240,1739958641531,-484.0,0.00017671,2]
[353614242,1739958641541,-484.0,0.00017671,2]
[353614245,1739958641560,-484.0,0.00017671,2]
[353614247,1739958641571,-484.0,0.00017671,2]
[353614249,1739958641581,-484.0,0.00017671,2]
[353614252,1739958641591,-626.0,0.00017671,2]
[353614254,1739958641601,-626.0,0.00017671,2]
[353614256,1739958641610,-626.0,0.00017671,2]
[353614257,1739958641620,-626.0,0.00017671,2]
[353614260,1739958641630,-626.0,0.00017671,2]
[353614261,1739958641639,-626.0,0.00017671,2]
[353614264,1739958641649,-626.0,0.00017671,2]
[353614265,1739958641658,-626.0,0.00017671,2]
[353614268,1739958641668,-626.0,0.00017671,2]
[353614270,1739958641678,-626.0,0.00017671,2]
[353614272,1739958641688,-626.0,0.00017671,2]
[353614274,1739958641697,-626.0,0.00017671,2]
[353614276,1739958641706,-626.0,0.00017671,2]
[353614278,1739958641716,-626.0,0.00017671,2]
[353614280,1739958641726,-626.0,0.00017671,2]
[353614282,1739958641735,-626.0,0.00017671,2]
[353614284,1739958641745,-626.0,0.00017671,2]
[353614286,1739958641755,-484.0,0.00017672,2]
[353614288,1739958641764,-484.0,0.00017672,2]
[353614290,1739958641774,-484.0,0.00017672,2]
[353614292,1739958641783,-484.0,0.00017672,2]
[353614294,1739958641793,-484.0,0.00017672,2]
[353614296,1739958641803,-484.0,0.00017672,2]
[353614298,1739958641812,-484.0,0.00017672,2]
[353614300,1739958641822,-484.0,0.00017672,2]
[353614302,1739958641831,-484.0,0.00017672,2]
[353614304,1739958641841,-484.0,0.00017672,2]
[353614306,1739958641851,-484.0,0.00017672,2]
[353614308,1739958641860,-484.0,0.00017672,2]
[353614310,1739958641870,-484.0,0.00017672,2]
[353614327,1739958642011,-484.0,0.00017672,2]
[353614329,1739958642021,-484.0,0.00017672,2]
[353614331,1739958642031,-484.0,0.00017672,2]
[353614333,1739958642041,-484.0,0.00017672,2]
[353614335,1739958642051,-484.0,0.00017672,2]
[353614337,1739958642060,-484.0,0.00017672,2]
[353614339,1739958642070,-484.0,0.00017672,2]
[353614341,1739958642079,-484.0,0.00017672,2]
[353614343,1739958642088,-484.0,0.00017672,2]
[353614345,1739958642098,-484.0,0.00017672,2]
[353614347,1739958642107,-484.0,0.00017672,2]
[353614349,1739958642116,-626.0,0.00017672,2]
[353614351,1739958642126,-626.0,0.00017672,2]
[353614353,1739958642135,-626.0,0.00017672,2]
[353614355,1739958642145,-626.0,0.00017672,2]
[353614357,1739958642155,-626.0,0.00017672,2]
[353614359,1739958642164,-626.0,0.00017672,2]
[353614361,1739958642173,-626.0,0.00017672,2]
[353614363,1739958642182,-626.0,0.00017672,2]
[353614365,1739958642192,-626.0,0.00017672,2]
[353614367,1739958642201,-626.0,0.00017672,2]
[353614369,1739958642211,-626.0,0.00017672,2]
[353614371,1739958642220,-626.0,0.00017672,2]
[353614373,1739958642230,-626.0,0.00017672,2]
[353614375,1739958642239,-626.0,0.00017672,2]
[353614377,1739958642249,-626.0,0.00017672,2]
[353614379,1739958642258,-626.0,0.00017672,2]
[353614381,1739958642268,-626.0,0.00017672,2]
[353614383,1739958642278,-626.0,0.00017672,2]
[353614385,1739958642287,-626.0,0.00017672,2]
[353614387,1739958642297,-626.0,0.00017672,2]
[353614389,1739958642307,-626.0,0.00017672,2]
[353614391,1739958642316,-626.0,0.00017672,2]
[353614393,1739958642326,-626.0,0.00017672,2]
[353614395,1739958642335,-626.0,0.00017672,2]
[353614397,1739958642345,-626.0,0.00017672,2]
[353614399,1739958642354,-154.65899617,0.00017675,2]
[353614401,1739958642365,-316.0,0.00017675,2]
[353614403,1739958642381,-316.0,0.00017675,2]
[353614405,1739958642391,-316.0,0.00017675,2]
[353614407,1739958642400,-316.0,0.00017675,2]
[353614409,1739958642411,-316.0,0.00017675,2]
[353614411,1739958642420,-316.0,0.00017675,2]
[353614413,1739958642429,-316.0,0.00017675,2]
[353614415,1739958642438,-316.0,0.00017675,2]
[353614417,1739958642449,-316.0,0.00017675,2]
[353614419,1739958642459,-316.0,0.00017675,2]
[353614421,1739958642468,-316.0,0.00017675,2]
[353614423,1739958642482,-316.0,0.00017675,2]
[353614425,1739958642500,-316.0,0.00017675,2]
[353614427,1739958642515,-316.0,0.00017675,2]
[353614429,1739958642525,-316.0,0.00017675,2]
[353614431,1739958642535,-316.0,0.00017675,2]
[353614433,1739958642545,-316.0,0.00017675,2]
[353614435,1739958642554,-316.0,0.00017675,2]
[353614437,1739958642563,-316.0,0.00017675,2]
[353614439,1739958642572,-447.0,0.00017675,2]
[353614441,1739958642581,-447.0,0.00017675,2]
[353614443,1739958642590,-447.0,0.00017675,2]
[353614445,1739958642599,-447.0,0.00017675,2]
[353614447,1739958642609,-447.0,0.00017675,2]
[353614449,1739958642618,-447.0,0.00017675,2]
[353614452,1739958642627,-447.0,0.00017675,2]
[353614454,1739958642637,-447.0,0.00017675,2]
[353614456,1739958642646,-447.0,0.00017675,2]
[353614458,1739958642656,-447.0,0.00017675,2]
[353614460,1739958642665,-447.0,0.00017675,2]
[353614462,1739958642675,-447.0,0.00017675,2]
[353614464,1739958642684,-447.0,0.00017675,2]
[353614466,1739958642693,-276.0,0.00017684,2]
[353614468,1739958642703,-276.0,0.00017684,2]
[353614470,1739958642712,-276.0,0.00017684,2]
[353614472,1739958642721,-276.0,0.00017684,2]
[353614473,1739958642730,-276.0,0.00017684,2]
[353614477,1739958642740,-276.0,0.00017684,2]
[353614479,1739958642756,-276.0,0.00017684,2]
[353614483,1739958642773,-276.0,0.00017684,2]
[353614486,1739958642782,-276.0,0.00017684,2]
[353614489,1739958642792,-276.0,0.00017684,2]
[353614492,1739958642804,-276.0,0.00017684,2]
[353614495,1739958642813,-276.0,0.00017684,2]
[353614498,1739958642822,-276.0,0.00017684,2]
[353614501,1739958642831,-276.0,0.00017684,2]
[353614503,1739958642841,-358.0,0.00017685,2]
[353614505,1739958642851,-358.0,0.00017685,2]
[353614507,1739958642861,-358.0,0.00017685,2]
[353614509,1739958642870,-358.0,0.00017685,2]
[353614511,1739958642879,-358.0,0.00017685,2]
[353614513,1739958642889,-358.0,0.00017685,2]
[353614515,1739958642898,-358.0,0.00017685,2]
[353614517,1739958642907,-358.0,0.00017685,2]
[353614519,1739958642917,-358.0,0.00017685,2]
[353614521,1739958642926,-358.0,0.00017685,2]
[353614523,1739958642935,-358.0,0.00017685,2]
[353614525,1739958642945,-358.0,0.00017685,2]
[353614527,1739958642954,-358.0,0.00017685,2]
[353614529,1739958642964,-358.0,0.00017685,2]
[353614531,1739958642973,-500.0,0.00017714,2]
[353614533,1739958642982,-500.0,0.00017729,2]
[353614535,1739958642991,-500.0,0.00017796,2]
[353614537,1739958643000,-13275.53870192,0.00017804,2]
[353614539,1739958643010,-500.0,0.00017829,2]
[353614541,1739958643019,-500.0,0.00017878,2]
[353614543,1739958643028,-21154.467976,0.0001788,2]
[353614545,1739958643038,-672.26676577,0.0001788,2]
[353614547,1739958643047,-3000.0,0.000179,2]
[353614549,1739958643059,-2223.42860848,0.000179,2]
[353614551,1739958643069,-444.016917,0.000179,2]
[353614553,1739958643079,-4779.61785252,0.000179,2]
[353614555,1739958643088,-165.48895109,0.000179,2]
[353614557,1739958643098,-165.48,0.000179,2]
[353614559,1739958643107,-159.76392627,0.000179,2]
[353614561,1739958643117,-159.76392627,0.000179,2]
[353614563,1739958643126,-159.76392627,0.000179,2]
[353614565,1739958643135,-188.12085177,0.000179,2]
[353614567,1739958643145,-159.76392627,0.000179,2]
[353614569,1739958643154,-159.76392627,0.000179,2]
[353614571,1739958643163,-159.76392627,0.000179,2]
[353614573,1739958643172,-159.76392627,0.000179,2]
[353614575,1739958643182,-159.76392627,0.000179,2]
[353614577,1739958643192,-159.76392627,0.000179,2]
[353614579,1739958643201,-159.76,0.000179,2]
[353614581,1739958643211,-186.39124732,0.000179,2]
[353614583,1739958643220,-186.39124732,0.000179,2]
[353614585,1739958643230,-186.39124732,0.000179,2]
[353614587,1739958643240,-186.39124732,0.000179,2]
[353614589,1739958643248,-186.39124732,0.000179,2]
[353614591,1739958643258,-186.39124732,0.000179,2]
[353614593,1739958643267,-186.39124732,0.000179,2]
[353614595,1739958643278,-186.39124732,0.000179,2]